[Event "47th GRE-chT 2019"]
[Site "Patra"]
[Date "2019.07.06"]
[Round "7.20"]
[White "Ximinis, Ioannis"]
[Black "Souchleris, Nikolaos"]
[Result "1-0"]
[ECO "A45"]
[WhiteElo "1156"]
[BlackElo "1204"]
[Annotator "NA"]
[PlyCount "103"]
[EventDate "2019.07.02"]
[EventCountry "GRE"]
[SourceTitle "playchess.com"]
[Source "ChessBase"]
[SourceQuality "1"]
[TimeControl "5400+30"]

1. d4 {[%emt 0:00:00]} Nf6 {[%emt 0:00:00]} 2. Bf4 {[%emt 0:00:23]} e6 {[%emt 0:00:00]} 3. Nf3 {[%emt 0:00:18]} b6 {[%emt 0:00:22]} 4. e3 {[%emt 0:00:13]} Bb7 {[%emt 0:00:39]} 5. Bd3 {[%emt 0:01:03]} Be7 {[%emt 0:02:22]} 6. h3 {[%emt 0:00:16]} O-O {[%emt 0:00:15]} 7. O-O {[%emt 0:00:07]} d6 {[%emt 0:00:25]} 8. Nbd2 {[%emt 0:03:18]} Nbd7 {[%emt 0:00:35]} 9. Bh2 {[%emt 0:00:58]} Re8 {[%emt 0:01:59]} 10. c3 {[%emt 0:00:28]} Nf8 {[%emt 0:00:44]} 11. Bb5 {[%emt 0:04:38]} c6 {[%emt 0:03:33]} 12. Bd3 {[%emt 0:03:10]} Ng6 {[%emt 0:00:54]} 13. Rc1 {[%emt 0:04:20]} Bf8 {[%emt 0:01:33]} 14. Bb1 {[%emt 0:00:10]} c5 {[%emt 0:01:26]} 15. Qe2 {[%emt 0:00:26]} d5 {[%emt 0:10:41]} 16. Rfd1 {[%emt 0:02:01]} Rc8 {[%emt 0:05:59]} 17. Ne5 {[%emt 0:00:31]} Bd6 {[%emt 0:04:24]} 18. f4 {[%emt 0:03:00]} Nd7 {[%emt 0:06:38]} 19. Rf1 {[%emt 0:02:52]} Ndxe5 {[%emt 0:02:22]} 20. fxe5 {[%emt 0:00:30]} Be7 {[%emt 0:01:36]} 21. Qf2 {[%emt 0:02:14]} Rf8 {[%emt 0:02:39]} 22. Qe2 {[%emt 0:04:50]} Bh4 {[%emt 0:08:02]} 23. g3 {[%emt 0:08:13]} Bg5 {[%emt 0:01:50]} 24. Qd3 {[%emt 0:02:06]} c4 {[%emt 0:02:25]} 25. Qe2 {[%emt 0:00:23]} Bh6 {[%emt 0:00:39]} 26. Nf3 {[%emt 0:03:50]} f6 {[%emt 0:02:23]} 27. Bxg6 {[%emt 0:01:07]} hxg6 {[%emt 0:00:11]} 28. Rf2 {[%emt 0:01:44]} fxe5 {[%emt 0:02:48]} 29. Nxe5 {[%emt 0:00:33]} Rxf2 30. Qxf2 {[%emt 0:00:16]} Qf6 {[%emt 0:12:30]} 31. Qe2 {[%emt 0:06:28]} Qg5 {[%emt 0:02:50]} 32. Re1 {[%emt 0:00:29]} Qf5 {[%emt 0:00:48]} 33. Qg2 {[%emt 0:04:20]} Rf8 {[%emt 0:04:20]} 34. g4 {[%emt 0:01:16]} Qg5 {[%emt 0:01:11]} 35. Bf4 {[%emt 0:00:19]} Qh4 {[%emt 0:01:49]} 36. Nf3 {[%emt 0:00:38]} Qf6 {[%emt 0:00:43]} 37. g5 {[%emt 0:00:06]} Bxg5 {[%emt 0:02:45]} 38. Nxg5 {[%emt 0:00:06]} Qf5 {[%emt 0:00:58]} 39. Qg4 {[%emt 0:01:18]} Qxg4+ {[%emt 0:00:28]} 40. hxg4 {[%emt 0:00:00]} Bc8 {[%emt 0:00:00]} 41. Be5 {[%emt 0:00:00]} a5 {[%emt 0:00:00]} 42. Kg2 {[%emt 0:00:00]} b5 {[%emt 0:00:00]} 43. Rh1 {[%emt 0:00:00]} Rd8 {[%emt 0:00:00]} 44. a3 {[%emt 0:00:00]} Bd7 {[%emt 0:00:00]} 45. Rh7 {[%emt 0:00:00]} Kf8 {[%emt 0:00:00]} 46. Bxg7+ {[%emt 0:00:00]} Ke8 {[%emt 0:00:00]} 47. Rh8+ {[%emt 0:00:00]} Ke7 {[%emt 0:00:00]} 48. Bf6+ {[%emt 0:00:00]} Kd6 {[%emt 0:00:00]} 49. Nf7+ {[%emt 0:00:00]} Kc7 {[%emt 0:00:00]} 50. Be5+ {[%emt 0:00:00]} Kb7 {[%emt 0:00:00]} 51. Nxd8+ {[%emt 0:00:00]} Ka7 {[%emt 0:00:00]} 52. Rh7 {[%emt 0:00:00]} 1-0

[Event "47th GRE-chT 2019"]
[Site "Patra"]
[Date "2019.07.06"]
[Round "7.22"]
[White "Postny, Evgeny"]
[Black "Theodorou, Nikolas"]
[Result "1/2-1/2"]
[ECO "E92"]
[WhiteElo "2601"]
[BlackElo "2543"]
[Annotator "RC"]
[PlyCount "98"]
[EventDate "2019.07.02"]
[EventCountry "GRE"]
[SourceTitle "playchess.com"]
[Source "ChessBase"]
[SourceQuality "1"]
[TimeControl "5400+30"]

1. d4 {[%emt 0:08:40]} Nf6 {[%emt 0:00:00]} 2. c4 {[%emt 0:00:26]} g6 {[%emt 0:00:00]} 3. Nc3 {[%emt 0:00:03]} Bg7 {[%emt 0:00:00]} 4. e4 {[%emt 0:00:02]} d6 {[%emt 0:00:00]} 5. Nf3 {[%emt 0:00:04]} O-O {[%emt 0:00:00]} 6. Be2 {[%emt 0:00:02]} e5 {[%emt 0:00:00]} 7. d5 {[%emt 0:00:42]} a5 {[%emt 0:00:00]} 8. h3 {[%emt 0:03:01]} Na6 {[%emt 0:00:02]} 9. Bg5 {[%emt 0:03:01]} Qe8 {[%emt 0:01:36]} 10. Nd2 {[%emt 0:00:56]} Nd7 {[%emt 0:00:40]} 11. a3 {[%emt 0:03:30]} f6 {[%emt 0:00:11]} 12. Be3 {[%emt 0:01:16]} f5 {[%emt 0:00:08]} 13. f3 {[%emt 0:06:59]} Nb6 {[%emt 0:13:26]} 14. b3 {[%emt 0:01:32]} Bd7 {[%emt 0:00:54]} 15. O-O {[%emt 0:00:43]} Qe7 {[%emt 0:01:42]} 16. Rb1 {[%emt 0:02:23]} Bf6 {[%emt 0:07:43]} 17. b4 {[%emt 0:00:07]} axb4 {[%emt 0:00:02]} 18. axb4 {[%emt 0:00:14]} Bg5 {[%emt 0:00:12]} 19. Bf2 {[%emt 0:01:40]} Bh4 {[%emt 0:11:20]} 20. Qe1 {[%emt 0:00:56]} Bxf2+ {[%emt 0:00:06]} 21. Qxf2 {[%emt 0:00:11]} Qg5 {[%emt 0:01:29]} 22. Bd3 {[%emt 0:07:54]} Na4 {[%emt 0:03:15]} 23. Nxa4 {[%emt 0:00:24]} Bxa4 {[%emt 0:03:22]} 24. exf5 {[%emt 0:00:08]} gxf5 {[%emt 0:00:09]} 25. f4 {[%emt 0:00:11]} Qxf4 {[%emt 0:00:12]} 26. Qxf4 {[%emt 0:00:02]} exf4 {[%emt 0:00:14]} 27. Rxf4 {[%emt 0:02:12]} Bd7 {[%emt 0:07:23]} 28. Nf3 {[%emt 0:06:54]} Rae8 {[%emt 0:21:45]} 29. Nd4 {[%emt 0:00:35]} Re5 {[%emt 0:01:13]} 30. Rbf1 {[%emt 0:00:36]} Nxb4 {[%emt 0:00:22]} 31. Bxf5 {[%emt 0:00:10]} Bxf5 {[%emt 0:00:06]} 32. Nxf5 {[%emt 0:00:21]} Kh8 {[%emt 0:00:13]} 33. Nd4 {[%emt 0:06:34]} Rxf4 {[%emt 0:00:28]} 34. Rxf4 {[%emt 0:00:16]} h5 {[%emt 0:05:56]} 35. Nf3 {[%emt 0:03:58]} Re7 {[%emt 0:07:08]} 36. Rh4 {[%emt 0:00:02]} Kg7 {[%emt 0:00:09]} 37. Rxh5 {[%emt 0:00:03]} Re4 {[%emt 0:00:08]} 38. Rh4 {[%emt 0:00:32]} Rxh4 {[%emt 0:00:04]} 39. Nxh4 {[%emt 0:05:51]} b5 {[%emt 0:00:00]} 40. cxb5 {[%emt 0:00:00]} Nxd5 {[%emt 0:00:00]} 41. g4 {[%emt 0:00:00]} Kf6 {[%emt 0:00:00]} 42. Nf5 {[%emt 0:00:00]} Nc3 {[%emt 0:00:00]} 43. Nxd6 {[%emt 0:00:06]} Ke5 {[%emt 0:05:13]} 44. Nf7+ {[%emt 0:05:44]} Kf4 {[%emt 0:01:16]} 45. g5 {[%emt 0:01:08]} Kf5 {[%emt 0:00:09]} 46. h4 {[%emt 0:00:21]} Nxb5 {[%emt 0:00:15]} 47. h5 {[%emt 0:03:49]} Nd6 {[%emt 0:00:15]} 48. g6 {[%emt 0:00:02]} Ne8 {[%emt 0:09:17]} 49. Ne5 {[%emt 0:01:40]} Kg5 {[%emt 0:00:52]} 1/2-1/2

[Event "47th GRE-chT 2019"]
[Site "Patra"]
[Date "2019.07.06"]
[Round "7.23"]
[White "Naoum, Spyridon"]
[Black "Grivas, Efstratios"]
[Result "1/2-1/2"]
[ECO "A81"]
[WhiteElo "2299"]
[BlackElo "2418"]
[Annotator "NA"]
[PlyCount "138"]
[EventDate "2019.07.02"]
[EventCountry "GRE"]
[SourceTitle "playchess.com"]
[Source "ChessBase"]
[SourceQuality "1"]
[TimeControl "5400+30"]

1. d4 {[%emt 0:02:34]} f5 {[%emt 0:00:00]} 2. g3 {[%emt 0:02:03]} Nf6 {[%emt 0:00:02]} 3. Bg2 {[%emt 0:00:04]} g6 {[%emt 0:00:10]} 4. c3 {[%emt 0:00:29]} Bg7 {[%emt 0:00:37]} 5. Nh3 {[%emt 0:02:13]} c6 {[%emt 0:02:22]} 6. O-O {[%emt 0:02:21]} O-O {[%emt 0:04:14]} 7. Nd2 {[%emt 0:00:04]} Na6 {[%emt 0:03:56]} 8. a4 {[%emt 0:04:33]} Nc7 {[%emt 0:01:34]} 9. a5 {[%emt 0:04:00]} Kh8 {[%emt 0:05:08]} 10. Re1 {[%emt 0:03:42]} d5 {[%emt 0:01:39]} 11. Nf4 {[%emt 0:03:20]} Nd7 {[%emt 0:14:44]} 12. c4 {[%emt 0:08:01]} e6 {[%emt 0:06:25]} 13. e3 {[%emt 0:00:19]} dxc4 {[%emt 0:08:24]} 14. Nxc4 {[%emt 0:03:17]} e5 {[%emt 0:00:08]} 15. dxe5 {[%emt 0:01:36]} Nxe5 {[%emt 0:00:08]} 16. Nd6 {[%emt 0:01:27]} Rf6 {[%emt 0:09:32]} 17. Nxc8 {[%emt 0:02:21]} Rxc8 {[%emt 0:00:12]} 18. Qe2 {[%emt 0:03:49]} Rd6 {[%emt 0:02:18]} 19. e4 {[%emt 0:00:23]} fxe4 {[%emt 0:02:34]} 20. Bxe4 {[%emt 0:04:47]} Nb5 {[%emt 0:07:49]} 21. Be3 {[%emt 0:00:57]} Qf6 {[%emt 0:01:48]} 22. Red1 {[%emt 0:05:34]} Nf7 {[%emt 0:01:32]} 23. a6 {[%emt 0:07:51]} b6 {[%emt 0:01:08]} 24. Rac1 {[%emt 0:06:14]} Qxb2 {[%emt 0:08:42]} 25. Rxd6 {[%emt 0:13:30]} Nfxd6 {[%emt 0:03:21]} 26. Qxb2 {[%emt 0:01:33]} Bxb2 {[%emt 0:00:03]} 27. Rxc6 {[%emt 0:00:05]} Rxc6 {[%emt 0:00:57]} 28. Bxc6 {[%emt 0:00:05]} Bd4 {[%emt 0:02:20]} 29. Nd5 {[%emt 0:02:06]} Bxe3 {[%emt 0:00:00]} 30. fxe3 {[%emt 0:00:06]} Kg7 {[%emt 0:00:00]} 31. Bd7 {[%emt 0:05:04]} Kf7 {[%emt 0:03:33]} 32. Kg2 {[%emt 0:01:30]} Na3 {[%emt 0:02:56]} 33. Nxb6 {[%emt 0:00:24]} Ke7 {[%emt 0:00:57]} 34. Bg4 {[%emt 0:02:34]} Nac4 {[%emt 0:01:39]} 35. Nxc4 {[%emt 0:03:32]} Nxc4 {[%emt 0:00:03]} 36. Kf2 {[%emt 0:02:08]} Kd6 {[%emt 0:00:38]} 37. Be2 {[%emt 0:00:07]} Ne5 {[%emt 0:00:10]} 38. h4 {[%emt 0:00:46]} h6 {[%emt 0:00:08]} 39. Ke1 {[%emt 0:01:00]} Kd5 {[%emt 0:02:02]} 40. Bf1 {[%emt 0:00:00]} g5 {[%emt 0:00:00]} 41. hxg5 {[%emt 0:00:00]} hxg5 {[%emt 0:00:00]} 42. Bg2+ {[%emt 0:00:00]} Kc4 {[%emt 0:00:00]} 43. Kd2 {[%emt 0:00:00]} Kb4 {[%emt 0:00:00]} 44. Bf1 {[%emt 0:00:00]} Kc5 {[%emt 0:00:00]} 45. Bg2 {[%emt 0:00:00]} Kc4 {[%emt 0:00:00]} 46. Bb7 {[%emt 0:00:00]} Kb4 {[%emt 0:00:00]} 47. Bc8 {[%emt 0:00:00]} Kc4 {[%emt 0:00:00]} 48. Bf5 {[%emt 0:00:00]} Kb4 {[%emt 0:00:00]} 49. Be6 {[%emt 0:00:00]} Kb5 {[%emt 0:00:00]} 50. Kc3 {[%emt 0:00:00]} Kc5 {[%emt 0:00:00]} 51. Bc8 {[%emt 0:00:00]} Kd5 {[%emt 0:00:00]} 52. Bb7+ {[%emt 0:03:09]} Kc5 {[%emt 0:00:00]} 53. Bg2 {[%emt 0:00:35]} Ng4 {[%emt 0:00:00]} 54. Kd3 {[%emt 0:00:08]} Nf6 {[%emt 0:00:00]} 55. Bb7 {[%emt 0:02:17]} g4 {[%emt 0:00:00]} 56. Be4 {[%emt 0:03:21]} Nh5 {[%emt 0:00:04]} 57. Bf5 {[%emt 0:00:05]} Nxg3 {[%emt 0:00:34]} 58. Bxg4 {[%emt 0:00:02]} Nf1 {[%emt 0:00:27]} 59. e4 {[%emt 0:01:03]} Ng3 {[%emt 0:00:05]} 60. e5 {[%emt 0:00:20]} Kd5 {[%emt 0:00:22]} 61. e6 {[%emt 0:00:03]} Kd6 {[%emt 0:00:04]} 62. Kd4 {[%emt 0:01:34]} Nh5 {[%emt 0:00:20]} 63. Bxh5 {[%emt 0:00:37]} Kxe6 {[%emt 0:00:07]} 64. Kc5 {[%emt 0:00:03]} Kd7 {[%emt 0:00:07]} 65. Bg4+ {[%emt 0:00:12]} Kc7 {[%emt 0:00:06]} 66. Bh3 {[%emt 0:00:01]} Kb8 {[%emt 0:00:06]} 67. Kc6 {[%emt 0:00:21]} Ka8 {[%emt 0:00:08]} 68. Bg4 {[%emt 0:00:12]} Kb8 {[%emt 0:00:06]} 69. Bf3 {[%emt 0:00:03]} Kc8 {[%emt 0:00:09]} 1/2-1/2

[Event "47th GRE-chT 2019"]
[Site "Patra"]
[Date "2019.07.06"]
[Round "7.24"]
[White "Souleidis, Georgios"]
[Black "Liodakis, Konstantinos-Spyros"]
[Result "1-0"]
[ECO "C00"]
[WhiteElo "2426"]
[BlackElo "2212"]
[Annotator "NA"]
[PlyCount "59"]
[EventDate "2019.07.02"]
[EventCountry "GRE"]
[SourceTitle "playchess.com"]
[Source "ChessBase"]
[SourceQuality "1"]
[TimeControl "5400+30"]

1. e4 {[%emt 0:00:00]} e6 {[%emt 0:00:00]} 2. Qe2 {[%emt 0:00:00]} c5 {[%emt 0:00:00]} 3. Nf3 {[%emt 0:00:00]} Nc6 {[%emt 0:00:00]} 4. g3 {[%emt 0:00:10]} Be7 {[%emt 0:00:31]} 5. Bg2 {[%emt 0:00:10]} d5 {[%emt 0:04:00]} 6. d3 {[%emt 0:01:02]} Nf6 {[%emt 0:00:07]} 7. O-O {[%emt 0:00:37]} h6 {[%emt 0:06:02]} 8. c3 {[%emt 0:00:31]} b6 {[%emt 0:14:43]} 9. Rd1 {[%emt 0:01:03]} Bb7 {[%emt 0:01:52]} 10. Nbd2 {[%emt 0:02:12]} Qc7 {[%emt 0:02:37]} 11. Nf1 {[%emt 0:06:17]} O-O-O {[%emt 0:11:06]} 12. Bf4 {[%emt 0:07:05]} Qd7 {[%emt 0:00:43]} 13. Ne5 {[%emt 0:00:06]} Nxe5 {[%emt 0:00:02]} 14. Bxe5 {[%emt 0:01:36]} dxe4 {[%emt 0:00:25]} 15. dxe4 {[%emt 0:00:13]} Qa4 {[%emt 0:04:07]} 16. b3 {[%emt 0:02:25]} Qc6 {[%emt 0:04:36]} 17. Ne3 {[%emt 0:21:00]} Ne8 {[%emt 0:08:13]} 18. c4 {[%emt 0:07:28]} Bd6 {[%emt 0:05:03]} 19. Bxg7 {[%emt 0:00:15]} Nxg7 {[%emt 0:00:02]} 20. e5 {[%emt 0:00:10]} Qc7 {[%emt 0:00:04]} 21. exd6 {[%emt 0:00:19]} Qd7 {[%emt 0:04:49]} 22. Rd2 {[%emt 0:01:26]} Bxg2 {[%emt 0:02:02]} 23. Kxg2 {[%emt 0:00:44]} Qc6+ {[%emt 0:00:12]} 24. Qf3 {[%emt 0:00:05]} Qxf3+ {[%emt 0:00:04]} 25. Kxf3 {[%emt 0:00:06]} Rd7 {[%emt 0:00:44]} 26. Rad1 {[%emt 0:00:22]} Rhd8 {[%emt 0:07:24]} 27. Kf4 {[%emt 0:02:19]} Kb7 {[%emt 0:01:35]} 28. Ng4 {[%emt 0:00:42]} Nf5 {[%emt 0:00:29]} 29. Ne5 {[%emt 0:00:43]} Rxd6 {[%emt 0:00:22]} 30. Nxf7 {[%emt 1:19:47]} 1-0

[Event "47th GRE-chT 2019"]
[Site "Patra"]
[Date "2019.07.06"]
[Round "7.25"]
[White "Antova, Gabriela"]
[Black "Daulyte-Cornette, Deimante"]
[Result "1/2-1/2"]
[ECO "A21"]
[WhiteElo "2257"]
[BlackElo "2444"]
[Annotator "NA"]
[PlyCount "80"]
[EventDate "2019.07.02"]
[EventCountry "GRE"]
[SourceTitle "playchess.com"]
[Source "ChessBase"]
[SourceQuality "1"]
[TimeControl "5400+30"]

1. d4 {[%emt 0:00:00]} d6 {[%emt 0:00:00]} 2. c4 {[%emt 0:00:49]} e5 {[%emt 0:00:00]} 3. Nc3 {[%emt 0:00:45]} exd4 {[%emt 0:00:01]} 4. Qxd4 {[%emt 0:00:08]} Nc6 {[%emt 0:00:08]} 5. Qd2 {[%emt 0:00:24]} Nf6 {[%emt 0:00:16]} 6. b3 {[%emt 0:08:44]} a5 {[%emt 0:02:43]} 7. Bb2 {[%emt 0:01:04]} g6 {[%emt 0:04:01]} 8. g3 {[%emt 0:00:57]} Bg7 {[%emt 0:00:36]} 9. Bg2 {[%emt 0:00:24]} O-O {[%emt 0:00:29]} 10. Nf3 {[%emt 0:08:38]} Be6 {[%emt 0:22:59]} 11. Rd1 {[%emt 0:12:50]} a4 {[%emt 0:06:17]} 12. O-O {[%emt 0:01:32]} axb3 {[%emt 0:00:35]} 13. axb3 {[%emt 0:00:01]} Nd7 {[%emt 0:04:29]} 14. Ng5 {[%emt 0:13:09]} Nc5 {[%emt 0:02:52]} 15. Nxe6 {[%emt 0:04:19]} fxe6 {[%emt 0:00:24]} 16. Qe3 {[%emt 0:04:07]} Na5 {[%emt 0:11:38]} 17. Ne4 {[%emt 0:14:34]} Naxb3 {[%emt 0:00:52]} 18. Nxc5 {[%emt 0:00:14]} Nxc5 {[%emt 0:00:41]} 19. Ba3 {[%emt 0:01:09]} Bh6 {[%emt 0:15:02]} 20. f4 {[%emt 0:05:07]} Qe7 {[%emt 0:12:04]} 21. Bxc5 {[%emt 0:00:16]} dxc5 {[%emt 0:00:05]} 22. Bxb7 {[%emt 0:00:31]} Rab8 {[%emt 0:00:15]} 23. Bf3 {[%emt 0:01:56]} Bg7 {[%emt 0:02:37]} 24. Kh1 {[%emt 0:01:05]} Rfd8 {[%emt 0:02:18]} 25. Rd3 {[%emt 0:11:14]} Rd4 {[%emt 0:01:12]} 26. Rfd1 {[%emt 0:00:39]} Kf7 {[%emt 0:01:44]} 27. Qd2 {[%emt 0:03:25]} Rbd8 {[%emt 0:01:33]} 28. Qc2 {[%emt 0:00:21]} R8d6 {[%emt 0:02:20]} 29. Kg2 {[%emt 0:01:13]} Qd7 {[%emt 0:00:28]} 30. h4 {[%emt 0:03:09]} Rxd3 {[%emt 0:01:42]} 31. Rxd3 {[%emt 0:00:13]} Rxd3 {[%emt 0:00:42]} 32. Qxd3 {[%emt 0:00:52]} Qxd3 {[%emt 0:00:17]} 33. exd3 {[%emt 0:00:01]} e5 {[%emt 0:00:16]} 34. fxe5 {[%emt 0:00:18]} Bxe5 {[%emt 0:00:04]} 35. Bd5+ {[%emt 0:00:07]} Kf6 {[%emt 0:00:18]} 36. Kf3 {[%emt 0:00:05]} g5 {[%emt 0:00:23]} 37. hxg5+ {[%emt 0:00:35]} Kxg5 {[%emt 0:00:04]} 38. g4 {[%emt 0:00:07]} h5 {[%emt 0:00:08]} 39. gxh5 {[%emt 0:00:05]} Kxh5 {[%emt 0:00:03]} 40. Ke4 {[%emt 0:00:00]} Bd4 {[%emt 0:00:00]} 1/2-1/2

[Event "47th GRE-chT 2019"]
[Site "Patra"]
[Date "2019.07.06"]
[Round "7.26"]
[White "Kalyva, Kyriaki"]
[Black "Vozinaki, Anthi - Maria"]
[Result "1/2-1/2"]
[ECO "D35"]
[WhiteElo "1869"]
[BlackElo "2054"]
[Annotator "NA"]
[PlyCount "146"]
[EventDate "2019.07.02"]
[EventCountry "GRE"]
[SourceTitle "playchess.com"]
[Source "ChessBase"]
[SourceQuality "1"]
[TimeControl "5400+30"]

1. d4 {[%emt 0:00:01]} d5 {[%emt 0:00:00]} 2. c4 {[%emt 0:00:06]} e6 {[%emt 0:00:00]} 3. Nc3 {[%emt 0:00:04]} Nf6 {[%emt 0:00:00]} 4. cxd5 {[%emt 0:00:05]} exd5 {[%emt 0:00:00]} 5. Bg5 {[%emt 0:01:19]} Be7 {[%emt 0:00:00]} 6. e3 {[%emt 0:00:15]} c6 {[%emt 0:00:00]} 7. Bd3 {[%emt 0:00:12]} Nbd7 {[%emt 0:00:05]} 8. Nf3 {[%emt 0:01:48]} Nh5 {[%emt 0:02:13]} 9. Bxe7 {[%emt 0:00:05]} Qxe7 {[%emt 0:00:54]} 10. Qc2 {[%emt 0:03:25]} g6 {[%emt 0:08:47]} 11. O-O {[%emt 0:09:28]} O-O {[%emt 0:12:46]} 12. e4 {[%emt 0:08:28]} dxe4 {[%emt 0:01:47]} 13. Nxe4 {[%emt 0:09:04]} Ndf6 {[%emt 0:12:03]} 14. Qc5 {[%emt 0:12:11]} Re8 {[%emt 0:05:44]} 15. Nd6 {[%emt 0:03:51]} Rd8 {[%emt 0:02:39]} 16. Nxc8 {[%emt 0:00:17]} Qxc5 {[%emt 0:00:08]} 17. dxc5 {[%emt 0:05:47]} Rxd3 {[%emt 0:00:45]} 18. Nd6 {[%emt 0:04:08]} Rd5 {[%emt 0:09:49]} 19. b4 {[%emt 0:06:26]} b6 {[%emt 0:02:23]} 20. Rfd1 {[%emt 0:04:45]} Nf4 {[%emt 0:09:49]} 21. Rxd5 {[%emt 0:02:02]} N6xd5 {[%emt 0:07:16]} 22. g3 {[%emt 0:05:03]} Nd3 {[%emt 0:04:31]} 23. a3 {[%emt 0:07:08]} bxc5 {[%emt 0:01:48]} 24. bxc5 {[%emt 0:02:27]} Rd8 {[%emt 0:04:20]} 25. Ng5 {[%emt 0:05:52]} Nxc5 {[%emt 0:05:36]} 26. Ndxf7 {[%emt 0:03:28]} Rf8 {[%emt 0:03:11]} 27. Rc1 {[%emt 0:02:38]} Nb3 {[%emt 0:02:54]} 28. Rb1 {[%emt 0:01:47]} Nd4 {[%emt 0:01:29]} 29. Nh6+ {[%emt 0:00:45]} Kg7 {[%emt 0:01:49]} 30. Ng4 {[%emt 0:01:04]} Nb6 {[%emt 0:01:12]} 31. f4 {[%emt 0:00:43]} c5 {[%emt 0:00:38]} 32. a4 {[%emt 0:00:41]} h6 {[%emt 0:00:04]} 33. Ne4 {[%emt 0:00:34]} Nxa4 {[%emt 0:00:16]} 34. Ra1 {[%emt 0:00:31]} Ne2+ {[%emt 0:00:55]} 35. Kg2 {[%emt 0:00:25]} Nec3 {[%emt 0:00:04]} 36. Nxc3 {[%emt 0:00:04]} Nxc3 {[%emt 0:00:34]} 37. Rxa7+ {[%emt 0:00:15]} Rf7 {[%emt 0:00:50]} 38. Ra6 {[%emt 0:01:13]} Nd5 {[%emt 0:00:30]} 39. Ne5 {[%emt 0:00:19]} Rf6 {[%emt 0:00:00]} 40. Ra7+ {[%emt 0:00:00]} Kg8 {[%emt 0:00:00]} 41. Ra8+ {[%emt 0:00:00]} Kg7 {[%emt 0:00:00]} 42. Rc8 {[%emt 0:00:00]} g5 {[%emt 0:00:00]} 43. Rxc5 {[%emt 0:00:00]} Rd6 {[%emt 0:00:00]} 44. fxg5 {[%emt 0:00:00]} hxg5 {[%emt 0:00:00]} 45. Kf3 {[%emt 0:00:00]} Kf6 {[%emt 0:00:00]} 46. Nc4 {[%emt 0:00:00]} Rd8 {[%emt 0:00:00]} 47. Rc6+ {[%emt 0:00:00]} Kg7 {[%emt 0:00:00]} 48. Kg4 {[%emt 0:00:00]} Rh8 {[%emt 0:00:00]} 49. h3 {[%emt 0:00:02]} Nf6+ {[%emt 0:00:00]} 50. Kf5 {[%emt 0:01:46]} Rxh3 {[%emt 0:00:00]} 51. Rc7+ {[%emt 0:00:43]} Kh6 {[%emt 0:00:00]} 52. Kxf6 {[%emt 0:00:20]} Rxg3 {[%emt 0:00:00]} 53. Ne5 {[%emt 0:00:43]} Rg1 {[%emt 0:05:29]} 54. Rc2 {[%emt 0:00:34]} Rf1+ {[%emt 0:00:08]} 55. Ke6 {[%emt 0:02:17]} g4 {[%emt 0:00:44]} 56. Rg2 {[%emt 0:01:17]} Kh5 {[%emt 0:01:05]} 57. Rxg4 {[%emt 0:00:20]} Re1 {[%emt 0:00:45]} 58. Rg2 {[%emt 0:00:21]} Kh4 {[%emt 0:00:33]} 59. Kf5 {[%emt 0:00:54]} Kh3 {[%emt 0:00:39]} 60. Rg8 {[%emt 0:00:31]} Ra1 {[%emt 0:00:52]} 61. Nc4 {[%emt 0:00:58]} Ra4 {[%emt 0:01:09]} 62. Nd2 {[%emt 0:00:33]} Ra2 {[%emt 0:00:32]} 63. Ne4 {[%emt 0:00:29]} Ra1 {[%emt 0:00:57]} 64. Nf2+ {[%emt 0:00:18]} Kh2 {[%emt 0:00:26]} 65. Kf4 {[%emt 0:01:00]} Rg1 {[%emt 0:00:29]} 66. Ng4+ {[%emt 0:00:33]} Kg2 {[%emt 0:00:35]} 67. Ne5+ {[%emt 0:00:32]} Kf2 {[%emt 0:00:16]} 68. Ra8 {[%emt 0:00:28]} Rb1 {[%emt 0:00:26]} 69. Ra2+ {[%emt 0:00:10]} Kf1 {[%emt 0:00:39]} 70. Nd3 {[%emt 0:00:45]} Rb8 {[%emt 0:00:34]} 71. Rf2+ {[%emt 0:00:06]} Kg1 {[%emt 0:00:09]} 72. Kf3 {[%emt 0:00:08]} Rf8+ {[%emt 0:00:04]} 73. Nf4 {[%emt 0:00:05]} Rxf4+ {[%emt 0:00:33]} 1/2-1/2